[Event "*** MasterClass Titled Tuesday Blitz"]
[Site "Chess.com"]
[Date "2017.07.04"]
[Round "5"]
[White "Rodalquilar"]
[Black "djogrodek1"]
[Result "1-0"]
[WhiteElo "2533"]
[BlackElo "2331"]
[TimeControl "180+2"]
[EndTime "14:05:31 PDT"]
[Termination "Rodalquilar won by resignation"]

1. d4 {[%clk 0:03:01.9]} 1... d5 {[%clk 0:02:54.4]} 2. Bf4 {[%clk 0:03:02.9]}
2... Nf6 {[%clk 0:02:53.7]} 3. e3 {[%clk 0:03:03.8]} 3... c5 {[%clk 0:02:55.2]}
4. Nf3 {[%clk 0:03:04.3]} 4... Nc6 {[%clk 0:02:56]} 5. Nbd2 {[%clk 0:03:05.4]}
5... Qb6 {[%clk 0:02:54.1]} 6. dxc5 {[%clk 0:03:04.3]} 6... Qxb2 {[%clk
0:02:55.2]} 7. Rb1 {[%clk 0:03:00.2]} 7... Qc3 {[%clk 0:02:56.1]} 8. Bb5 {[%clk
0:02:56.1]} 8... e6 {[%clk 0:02:57.5]} 9. O-O {[%clk 0:02:26.1]} 9... Be7 {[%clk
0:02:53.5]} 10. Nb3 {[%clk 0:01:17.8]} 10... Nd7 {[%clk 0:02:20.3]} 11. Nfd4
{[%clk 0:01:08.4]} 11... Na5 {[%clk 0:01:08.6]} 12. Nxa5 {[%clk 0:00:40.2]}
12... Qxa5 {[%clk 0:01:10.5]} 13. c6 {[%clk 0:00:41.7]} 13... bxc6 {[%clk
0:00:59.3]} 14. Bxc6 {[%clk 0:00:42.9]} 14... Ba6 {[%clk 0:01:00]} 15. Bxa8
{[%clk 0:00:38.2]} 15... Bxf1 {[%clk 0:01:01]} 16. Qxf1 {[%clk 0:00:25]} 16...
e5 {[%clk 0:01:02.2]} 17. Bc6 {[%clk 0:00:23.1]} 17... exf4 {[%clk 0:00:51.8]}
18. Rb5 {[%clk 0:00:14.5]} 18... Qd2 {[%clk 0:00:47.2]} 19. Rxd5 {[%clk
0:00:14.2]} 19... O-O {[%clk 0:00:46.4]} 20. Nf5 {[%clk 0:00:15.2]} 20... Qb4
{[%clk 0:00:44.2]} 21. c3 {[%clk 0:00:13.3]} 21... Qa3 {[%clk 0:00:44.9]} 22.
Nxe7+ {[%clk 0:00:14.4]} 22... Qxe7 {[%clk 0:00:45.5]} 23. Rxd7 {[%clk
0:00:15.7]} 23... Qc5 {[%clk 0:00:46.7]} 24. Bd5 {[%clk 0:00:12]} 24... fxe3
{[%clk 0:00:46.6]} 25. c4 {[%clk 0:00:12.8]} 25... Qa3 {[%clk 0:00:41.5]} 26.
fxe3 {[%clk 0:00:13]} 26... Qxe3+ {[%clk 0:00:42.6]} 27. Kh1 {[%clk 0:00:14.5]}
27... Kh8 {[%clk 0:00:42.1]} 28. Rxf7 {[%clk 0:00:14.5]} 28... Rxf7 {[%clk
0:00:42.6]} 29. Bxf7 {[%clk 0:00:16.4]} 29... Qd2 {[%clk 0:00:43.8]} 30. Bd5
{[%clk 0:00:17.4]} 1-0

[Event "*** MasterClass Titled Tuesday Blitz"]
[Site "Chess.com"]
[Date "2017.07.04"]
[Round "5"]
[White "Godzillator"]
[Black "SuperCheese"]
[Result "0-1"]
[WhiteElo "2264"]
[BlackElo "2418"]
[TimeControl "180+2"]
[EndTime "14:05:33 PDT"]
[Termination "SuperCheese won by resignation"]

1. d4 {[%clk 0:03:01.9]} 1... Nf6 {[%clk 0:03:00.3]} 2. c4 {[%clk 0:03:03.3]}
2... e6 {[%clk 0:02:54.9]} 3. Nc3 {[%clk 0:03:04.2]} 3... Bb4 {[%clk 0:02:53.4]}
4. Qc2 {[%clk 0:03:05.3]} 4... d5 {[%clk 0:02:53.5]} 5. cxd5 {[%clk 0:03:05.1]}
5... exd5 {[%clk 0:02:53.8]} 6. Bg5 {[%clk 0:03:04.9]} 6... c5 {[%clk
0:02:51.7]} 7. Nf3 {[%clk 0:03:05.4]} 7... cxd4 {[%clk 0:02:49.1]} 8. Nxd4
{[%clk 0:03:05.8]} 8... Nc6 {[%clk 0:02:50.8]} 9. Rd1 {[%clk 0:03:03.4]} 9...
O-O {[%clk 0:02:36.8]} 10. e3 {[%clk 0:03:04.4]} 10... h6 {[%clk 0:02:36.9]} 11.
Bh4 {[%clk 0:03:04.9]} 11... g5 {[%clk 0:02:29.7]} 12. Bg3 {[%clk 0:03:05.6]}
12... Ne4 {[%clk 0:02:31.2]} 13. Bd3 {[%clk 0:02:56.1]} 13... Nxd4 {[%clk
0:02:31.6]} 14. exd4 {[%clk 0:02:56.1]} 14... Bxc3+ {[%clk 0:01:25]} 15. bxc3
{[%clk 0:02:54.9]} 15... Nxg3 {[%clk 0:01:26.4]} 16. hxg3 {[%clk 0:02:55.1]}
16... Re8+ {[%clk 0:01:27.9]} 17. Kf1 {[%clk 0:02:54.6]} 17... Kg7 {[%clk
0:01:26.9]} 18. f3 {[%clk 0:02:30.7]} 18... Qe7 {[%clk 0:01:13.4]} 19. Qd2
{[%clk 0:02:26.5]} 19... Be6 {[%clk 0:01:09.4]} 20. Kf2 {[%clk 0:02:27.2]} 20...
Rac8 {[%clk 0:01:09.9]} 21. Rde1 {[%clk 0:02:25.4]} 21... Qa3 {[%clk 0:01:05.6]}
22. Rc1 {[%clk 0:02:25.8]} 22... Re7 {[%clk 0:01:02.2]} 23. f4 {[%clk
0:02:26.7]} 23... f6 {[%clk 0:00:59.2]} 24. Rhe1 {[%clk 0:02:18.3]} 24... Bf7
{[%clk 0:00:50.5]} 25. Rxe7 {[%clk 0:02:17.2]} 25... Qxe7 {[%clk 0:00:52.4]} 26.
Bf5 {[%clk 0:02:10.9]} 26... Rc7 {[%clk 0:00:51.3]} 27. Re1 {[%clk 0:02:09.9]}
27... Qa3 {[%clk 0:00:50.3]} 28. Re3 {[%clk 0:02:10.6]} 28... Re7 {[%clk
0:00:51.4]} 29. Rxe7 {[%clk 0:02:04.2]} 29... Qxe7 {[%clk 0:00:53.3]} 30. Qe2
{[%clk 0:02:04.9]} 30... Qa3 {[%clk 0:00:51.7]} 31. Qc2 {[%clk 0:02:00.6]} 31...
b5 {[%clk 0:00:50.8]} 32. Bd3 {[%clk 0:01:51.4]} 32... b4 {[%clk 0:00:50.3]} 33.
cxb4 {[%clk 0:01:50.7]} 33... Qxb4 {[%clk 0:00:52.2]} 34. Ke3 {[%clk 0:01:47.3]}
34... Qe1+ {[%clk 0:00:51.1]} 35. Kf3 {[%clk 0:01:39.1]} 35... a5 {[%clk
0:00:24.8]} 36. Bf5 {[%clk 0:01:23.5]} 36... h5 {[%clk 0:00:23.5]} 37. Qe2
{[%clk 0:01:17.6]} 37... g4+ {[%clk 0:00:23.5]} 38. Ke3 {[%clk 0:01:16.5]} 38...
Qxg3+ {[%clk 0:00:24.1]} 39. Kd2 {[%clk 0:01:17.5]} 39... Qxf4+ {[%clk
0:00:25.4]} 40. Kc3 {[%clk 0:01:17.8]} 40... Qxf5 {[%clk 0:00:26.6]} 0-1

[Event "*** MasterClass Titled Tuesday Blitz"]
[Site "Chess.com"]
[Date "2017.07.04"]
[Round "5"]
[White "MarshKnight"]
[Black "stuffings101"]
[Result "0-1"]
[WhiteElo "2138"]
[BlackElo "2184"]
[TimeControl "180+2"]
[EndTime "14:05:35 PDT"]
[Termination "stuffings101 won by checkmate"]

1. e4 {[%clk 0:03:01.9]} 1... d6 {[%clk 0:02:59.8]} 2. d4 {[%clk 0:03:02.6]}
2... Nf6 {[%clk 0:03:00.1]} 3. Nc3 {[%clk 0:03:04]} 3... g6 {[%clk 0:03:01.2]}
4. Nf3 {[%clk 0:03:04.9]} 4... Bg7 {[%clk 0:03:01.8]} 5. h3 {[%clk 0:03:06.4]}
5... O-O {[%clk 0:03:03]} 6. Be3 {[%clk 0:03:07.8]} 6... a6 {[%clk 0:03:02.6]}
7. Be2 {[%clk 0:03:06.3]} 7... Nc6 {[%clk 0:03:01.6]} 8. a4 {[%clk 0:02:57.3]}
8... e5 {[%clk 0:03:01]} 9. d5 {[%clk 0:02:58]} 9... Ne7 {[%clk 0:02:59.4]} 10.
Qd2 {[%clk 0:02:53.6]} 10... Bd7 {[%clk 0:02:59]} 11. Bh6 {[%clk 0:02:54]} 11...
b5 {[%clk 0:02:55.2]} 12. Bxg7 {[%clk 0:02:53.7]} 12... Kxg7 {[%clk 0:02:56.5]}
13. axb5 {[%clk 0:02:54]} 13... axb5 {[%clk 0:02:56.7]} 14. Rxa8 {[%clk
0:02:54]} 14... Qxa8 {[%clk 0:02:56.9]} 15. O-O {[%clk 0:02:47.1]} 15... b4
{[%clk 0:02:55.7]} 16. Nb5 {[%clk 0:02:37.4]} 16... Bxb5 {[%clk 0:02:46.6]} 17.
Bxb5 {[%clk 0:02:38.1]} 17... Nxe4 {[%clk 0:02:47.8]} 18. Qxb4 {[%clk
0:02:33.6]} 18... Nf6 {[%clk 0:02:43]} 19. c4 {[%clk 0:02:28.7]} 19... Ne4
{[%clk 0:02:31.3]} 20. Qa3 {[%clk 0:01:56.6]} 20... Qb7 {[%clk 0:02:18.9]} 21.
Ra1 {[%clk 0:01:55.3]} 21... Nxd5 {[%clk 0:02:16]} 22. Qa7 {[%clk 0:01:44.2]}
22... Qxa7 {[%clk 0:01:57.1]} 23. Rxa7 {[%clk 0:01:44.5]} 23... Nf4 {[%clk
0:01:41.3]} 24. Rxc7 {[%clk 0:01:39.1]} 24... h6 {[%clk 0:01:29.2]} 25. h4
{[%clk 0:01:08.6]} 25... Ra8 {[%clk 0:01:27.6]} 26. g3 {[%clk 0:01:04.2]} 26...
Ra1+ {[%clk 0:01:18.2]} 27. Kh2 {[%clk 0:01:05.5]} 27... Ne6 {[%clk 0:01:14.5]}
28. Rd7 {[%clk 0:00:50.7]} 28... Rf1 {[%clk 0:01:07.4]} 29. Kh3 {[%clk
0:00:19.9]} 29... Rxf2 {[%clk 0:01:00.2]} 30. Nh2 {[%clk 0:00:21.3]} 30... h5
{[%clk 0:00:56]} 31. g4 {[%clk 0:00:20.1]} 31... Nf4# {[%clk 0:00:53.4]} 0-1

[Event "*** MasterClass Titled Tuesday Blitz"]
[Site "Chess.com"]
[Date "2017.07.04"]
[Round "5"]
[White "Yaacovn"]
[Black "dhanushbharadwaj"]
[Result "1-0"]
[WhiteElo "2661"]
[BlackElo "2343"]
[TimeControl "180+2"]
[EndTime "14:05:45 PDT"]
[Termination "Yaacovn won by resignation"]

1. d4 {[%clk 0:02:35.7]} 1... g6 {[%clk 0:02:59.8]} 2. Nf3 {[%clk 0:02:37.1]}
2... Bg7 {[%clk 0:02:52.9]} 3. c4 {[%clk 0:02:38.4]} 3... c5 {[%clk 0:02:46]} 4.
g3 {[%clk 0:02:32.8]} 4... cxd4 {[%clk 0:02:46.9]} 5. Nxd4 {[%clk 0:02:33.7]}
5... Nc6 {[%clk 0:02:48.2]} 6. Nc2 {[%clk 0:02:34]} 6... d6 {[%clk 0:02:47.9]}
7. Bg2 {[%clk 0:02:34.9]} 7... Be6 {[%clk 0:02:48.9]} 8. Ne3 {[%clk 0:02:35.5]}
8... Rc8 {[%clk 0:02:47.5]} 9. O-O {[%clk 0:02:35.2]} 9... a6 {[%clk 0:02:48.6]}
10. Qd2 {[%clk 0:02:34.5]} 10... Nf6 {[%clk 0:02:46.8]} 11. Nc3 {[%clk
0:02:35.4]} 11... O-O {[%clk 0:02:48.4]} 12. b3 {[%clk 0:02:36.5]} 12... b5
{[%clk 0:02:47.7]} 13. cxb5 {[%clk 0:02:34.9]} 13... axb5 {[%clk 0:02:49.6]} 14.
Bb2 {[%clk 0:02:35.9]} 14... b4 {[%clk 0:02:49]} 15. Na4 {[%clk 0:02:36.8]}
15... Qa5 {[%clk 0:02:23.7]} 16. Rac1 {[%clk 0:02:27.2]} 16... Na7 {[%clk
0:02:23.1]} 17. Bd4 {[%clk 0:02:22.1]} 17... Bd7 {[%clk 0:02:10.2]} 18. Bb6
{[%clk 0:02:17]} 18... Qa6 {[%clk 0:02:11.3]} 19. Qxb4 {[%clk 0:02:15.5]} 19...
Rb8 {[%clk 0:02:05.9]} 20. Qa5 {[%clk 0:02:12.4]} 20... Qxa5 {[%clk 0:02:02.5]}
21. Bxa5 {[%clk 0:02:13.2]} 21... Bh6 {[%clk 0:01:50.5]} 22. Rc7 {[%clk
0:02:11]} 22... Nb5 {[%clk 0:01:47.7]} 23. Rb7 {[%clk 0:02:05.4]} 23... Rxb7
{[%clk 0:01:44.5]} 24. Bxb7 {[%clk 0:02:05.8]} 24... Nd4 {[%clk 0:01:45.8]} 25.
Bf3 {[%clk 0:01:52.3]} 25... Rc8 {[%clk 0:01:34.3]} 26. Nb6 {[%clk 0:01:50.7]}
26... Rc5 {[%clk 0:01:29.2]} 27. Nxd7 {[%clk 0:01:46]} 27... Rxa5 {[%clk
0:01:26.2]} 28. Nxf6+ {[%clk 0:01:46.4]} 28... exf6 {[%clk 0:01:28.1]} 29. b4
{[%clk 0:01:37.5]} 29... Rxa2 {[%clk 0:01:27.2]} 30. Rb1 {[%clk 0:01:37.8]}
30... Nb5 {[%clk 0:01:03.7]} 31. Nd5 {[%clk 0:01:34.7]} 31... Kg7 {[%clk
0:00:59.6]} 32. e3 {[%clk 0:01:26.9]} 32... f5 {[%clk 0:00:56.7]} 33. Bg2 {[%clk
0:01:27.9]} 33... Bg5 {[%clk 0:00:50.8]} 34. Bf1 {[%clk 0:01:27.7]} 34... Na3
{[%clk 0:00:52]} 35. Rb3 {[%clk 0:01:26.5]} 35... Ra1 {[%clk 0:00:25.2]} 36. b5
{[%clk 0:01:22.4]} 36... Nc4 {[%clk 0:00:23.9]} 37. b6 {[%clk 0:01:15.4]} 37...
Rxf1+ {[%clk 0:00:18.4]} 38. Kxf1 {[%clk 0:01:14]} 38... Nd2+ {[%clk 0:00:19.3]}
39. Kg2 {[%clk 0:01:14.6]} 39... Nxb3 {[%clk 0:00:21.2]} 40. b7 {[%clk
0:01:15.5]} 1-0

[Event "*** MasterClass Titled Tuesday Blitz"]
[Site "Chess.com"]
[Date "2017.07.04"]
[Round "5"]
[White "IamSchrodingersCat"]
[Black "michaelk123"]
[Result "0-1"]
[WhiteElo "2420"]
[BlackElo "2293"]
[TimeControl "180+2"]
[EndTime "14:05:47 PDT"]
[Termination "michaelk123 won by resignation"]

1. e4 {[%clk 0:03:01.9]} 1... c5 {[%clk 0:03:00.8]} 2. Nf3 {[%clk 0:03:02.5]}
2... e6 {[%clk 0:03:02.3]} 3. d4 {[%clk 0:03:03.4]} 3... cxd4 {[%clk 0:03:04.2]}
4. Nxd4 {[%clk 0:03:04.7]} 4... Nc6 {[%clk 0:03:05.7]} 5. Nc3 {[%clk 0:03:05.6]}
5... Qc7 {[%clk 0:03:07.2]} 6. Be3 {[%clk 0:03:06.2]} 6... a6 {[%clk 0:03:08.3]}
7. f4 {[%clk 0:03:05.8]} 7... b5 {[%clk 0:02:59.4]} 8. Qd2 {[%clk 0:02:59.5]}
8... Bb7 {[%clk 0:02:54]} 9. Bd3 {[%clk 0:02:49.5]} 9... Rc8 {[%clk 0:02:27.1]}
10. a3 {[%clk 0:02:44.7]} 10... h5 {[%clk 0:02:06.7]} 11. Nxc6 {[%clk 0:02:16]}
11... Bxc6 {[%clk 0:02:04.1]} 12. O-O {[%clk 0:02:08.7]} 12... Nf6 {[%clk
0:01:57.1]} 13. h3 {[%clk 0:02:04]} 13... h4 {[%clk 0:01:51.6]} 14. Qf2 {[%clk
0:02:03.7]} 14... Be7 {[%clk 0:01:45.1]} 15. e5 {[%clk 0:01:41.2]} 15... Nh5
{[%clk 0:01:45.1]} 16. Ne4 {[%clk 0:01:34.7]} 16... Bxe4 {[%clk 0:01:12.4]} 17.
Bxe4 {[%clk 0:01:36.6]} 17... Ng3 {[%clk 0:01:09.4]} 18. Bd3 {[%clk 0:01:17.5]}
18... Nxf1 {[%clk 0:01:06.9]} 19. Rxf1 {[%clk 0:01:19.4]} 19... Bc5 {[%clk
0:01:07.1]} 20. Kh2 {[%clk 0:01:18.4]} 20... Bxe3 {[%clk 0:01:04.7]} 21. Qxe3
{[%clk 0:01:20.3]} 21... Qc5 {[%clk 0:01:05.8]} 22. Qe1 {[%clk 0:01:16.5]} 22...
g6 {[%clk 0:01:05.8]} 23. Rf3 {[%clk 0:01:08]} 23... Ke7 {[%clk 0:01:02.9]} 24.
Qa5 {[%clk 0:01:02.2]} 24... Rc6 {[%clk 0:00:59.4]} 25. Be4 {[%clk 0:01:02.4]}
25... Rb6 {[%clk 0:00:54.1]} 26. Rc3 {[%clk 0:01:00.7]} 26... Qf2 {[%clk
0:00:51.1]} 27. Rf3 {[%clk 0:00:47.6]} 27... Qd4 {[%clk 0:00:51.6]} 28. c3
{[%clk 0:00:35.6]} 28... Qc5 {[%clk 0:00:45.6]} 29. Rd3 {[%clk 0:00:30.1]} 29...
Rhb8 {[%clk 0:00:42.4]} 30. Rf3 {[%clk 0:00:25.9]} 30... d6 {[%clk 0:00:41.6]}
31. exd6+ {[%clk 0:00:26.2]} 31... Rxd6 {[%clk 0:00:41.8]} 32. a4 {[%clk
0:00:11.6]} 32... Rd1 {[%clk 0:00:39.6]} 0-1

[Event "*** MasterClass Titled Tuesday Blitz"]
[Site "Chess.com"]
[Date "2017.07.04"]
[Round "5"]
[White "Winehouse83"]
[Black "grobesk"]
[Result "1-0"]
[WhiteElo "2299"]
[BlackElo "2218"]
[TimeControl "180+2"]
[EndTime "14:05:50 PDT"]
[Termination "Winehouse83 won on time"]

1. d4 {[%clk 0:03:01.9]} 1... Nf6 {[%clk 0:02:59.1]} 2. c4 {[%clk 0:03:03.3]}
2... Nc6 {[%clk 0:02:59.9]} 3. a3 {[%clk 0:03:02.8]} 3... e5 {[%clk 0:03:00.3]}
4. d5 {[%clk 0:03:03.8]} 4... Ne7 {[%clk 0:03:00.8]} 5. Nc3 {[%clk 0:03:04.1]}
5... Ng6 {[%clk 0:03:01.5]} 6. e4 {[%clk 0:03:04.3]} 6... a6 {[%clk 0:02:59.9]}
7. Be3 {[%clk 0:02:52.4]} 7... d6 {[%clk 0:02:42.4]} 8. f3 {[%clk 0:02:50.7]}
8... Be7 {[%clk 0:02:41.7]} 9. Qd2 {[%clk 0:02:49.9]} 9... h6 {[%clk 0:02:38.6]}
10. g4 {[%clk 0:02:45.3]} 10... Nh7 {[%clk 0:02:37.3]} 11. Nge2 {[%clk
0:02:33.1]} 11... Bg5 {[%clk 0:02:36.2]} 12. Ng3 {[%clk 0:02:31.7]} 12... Nh4
{[%clk 0:02:30]} 13. Be2 {[%clk 0:02:30]} 13... Bxe3 {[%clk 0:02:18.7]} 14. Qxe3
{[%clk 0:02:30.3]} 14... Qg5 {[%clk 0:02:20.6]} 15. Kd2 {[%clk 0:02:13.9]} 15...
Bd7 {[%clk 0:02:11.6]} 16. Rhg1 {[%clk 0:02:04.6]} 16... Nf8 {[%clk 0:02:02.9]}
17. Nf5 {[%clk 0:01:56.6]} 17... Qxe3+ {[%clk 0:01:45.5]} 18. Kxe3 {[%clk
0:01:54.1]} 18... Nxf5+ {[%clk 0:01:46]} 19. exf5 {[%clk 0:01:54.8]} 19... Nh7
{[%clk 0:01:30.4]} 20. h4 {[%clk 0:01:54.3]} 20... g5 {[%clk 0:01:25.7]} 21.
hxg5 {[%clk 0:01:52.9]} 21... Nxg5 {[%clk 0:01:13.9]} 22. Rh1 {[%clk 0:01:52.9]}
22... Kf8 {[%clk 0:01:14.6]} 23. Rh4 {[%clk 0:01:48.1]} 23... Kg7 {[%clk
0:01:15.2]} 24. Rah1 {[%clk 0:01:48.4]} 24... f6 {[%clk 0:01:13.6]} 25. Ne4
{[%clk 0:01:36.5]} 25... Nxe4 {[%clk 0:01:07.3]} 26. Kxe4 {[%clk 0:01:38.4]}
26... c5 {[%clk 0:01:03.1]} 27. b4 {[%clk 0:01:36.5]} 27... b5 {[%clk
0:00:41.4]} 28. bxc5 {[%clk 0:01:34.4]} 28... dxc5 {[%clk 0:00:43.3]} 29. Rb1
{[%clk 0:01:34.5]} 29... Rab8 {[%clk 0:00:43.5]} 30. Rh2 {[%clk 0:01:30]} 30...
Rb6 {[%clk 0:00:32.9]} 31. Bd3 {[%clk 0:01:17.3]} 31... Rhb8 {[%clk 0:00:27]}
32. Rc2 {[%clk 0:01:17.5]} 32... b4 {[%clk 0:00:26]} 33. axb4 {[%clk 0:01:09.8]}
33... Rxb4 {[%clk 0:00:26.6]} 34. Rxb4 {[%clk 0:01:09.2]} 34... Rxb4 {[%clk
0:00:27.2]} 35. Ra2 {[%clk 0:01:09.3]} 1-0

[Event "*** MasterClass Titled Tuesday Blitz"]
[Site "Chess.com"]
[Date "2017.07.04"]
[Round "5"]
[White "tigra"]
[Black "gena217"]
[Result "0-1"]
[WhiteElo "2625"]
[BlackElo "2556"]
[TimeControl "180+2"]
[EndTime "14:06:07 PDT"]
[Termination "gena217 won on time"]

1. e4 {[%clk 0:03:01.9]} 1... c5 {[%clk 0:03:00.4]} 2. Nf3 {[%clk 0:03:02.2]}
2... d6 {[%clk 0:03:01.2]} 3. d4 {[%clk 0:03:02.4]} 3... cxd4 {[%clk 0:03:03.1]}
4. Nxd4 {[%clk 0:03:03.9]} 4... Nf6 {[%clk 0:03:03.3]} 5. Nc3 {[%clk 0:03:05.2]}
5... a6 {[%clk 0:03:04.2]} 6. Bg5 {[%clk 0:03:04.9]} 6... e6 {[%clk 0:03:05.1]}
7. Qd2 {[%clk 0:02:56.8]} 7... h6 {[%clk 0:03:01.6]} 8. Bh4 {[%clk 0:02:55.1]}
8... Nxe4 {[%clk 0:03:02.4]} 9. Nxe4 {[%clk 0:02:34.8]} 9... Qxh4 {[%clk
0:03:02.2]} 10. Qd3 {[%clk 0:01:56.9]} 10... d5 {[%clk 0:02:59.8]} 11. Nc3
{[%clk 0:01:56.4]} 11... Nc6 {[%clk 0:03:00.2]} 12. Nf3 {[%clk 0:01:56.6]} 12...
Qd8 {[%clk 0:02:55.8]} 13. g3 {[%clk 0:01:54.1]} 13... Be7 {[%clk 0:02:54.4]}
14. Bg2 {[%clk 0:01:54.4]} 14... O-O {[%clk 0:02:54.8]} 15. h4 {[%clk
0:01:55.1]} 15... Qb6 {[%clk 0:02:50.1]} 16. Rb1 {[%clk 0:01:31.4]} 16... Rd8
{[%clk 0:02:50.2]} 17. a3 {[%clk 0:01:26.7]} 17... d4 {[%clk 0:02:29.7]} 18. Na2
{[%clk 0:01:06.7]} 18... e5 {[%clk 0:02:30.1]} 19. Nd2 {[%clk 0:01:07.1]} 19...
Be6 {[%clk 0:02:27.2]} 20. Nc4 {[%clk 0:00:58.1]} 20... Qc5 {[%clk 0:02:27.7]}
21. b3 {[%clk 0:00:56.4]} 21... Rac8 {[%clk 0:02:27.3]} 22. O-O {[%clk
0:00:53.6]} 22... b5 {[%clk 0:02:28.1]} 23. Nd2 {[%clk 0:00:53.5]} 23... f5
{[%clk 0:02:24.3]} 24. b4 {[%clk 0:00:51]} 24... Qd6 {[%clk 0:02:24.5]} 25. Nc1
{[%clk 0:00:49.1]} 25... e4 {[%clk 0:02:21]} 26. Qe2 {[%clk 0:00:49.4]} 26...
Ne5 {[%clk 0:02:20.6]} 27. Rd1 {[%clk 0:00:46.6]} 27... Rxc2 {[%clk 0:02:19.6]}
28. Nxe4 {[%clk 0:00:47.3]} 28... d3 {[%clk 0:02:10.5]} 29. Nxd3 {[%clk
0:00:17.1]} 29... Qxd3 {[%clk 0:02:09.3]} 30. Rxd3 {[%clk 0:00:13.6]} 30... Rxe2
{[%clk 0:02:10.5]} 31. Rxd8+ {[%clk 0:00:14.1]} 31... Bxd8 {[%clk 0:02:12.4]}
32. Nc5 {[%clk 0:00:15.4]} 32... Bc4 {[%clk 0:02:07.4]} 33. Rd1 {[%clk
0:00:15.7]} 33... Bf6 {[%clk 0:02:00.3]} 34. Bf1 {[%clk 0:00:10.1]} 34... Ra2
{[%clk 0:02:00]} 35. Nxa6 {[%clk 0:00:09.4]} 35... Rxa3 {[%clk 0:02:00.4]} 36.
Nc7 {[%clk 0:00:10.6]} 36... Nf3+ {[%clk 0:01:53.1]} 37. Kg2 {[%clk 0:00:11]}
37... Nd4 {[%clk 0:01:53.9]} 38. Rc1 {[%clk 0:00:08]} 38... Bxf1+ {[%clk
0:01:53.6]} 39. Kxf1 {[%clk 0:00:08.5]} 39... f4 {[%clk 0:01:55.1]} 40. gxf4
{[%clk 0:00:08.8]} 40... Rh3 {[%clk 0:01:50.9]} 41. Kg2 {[%clk 0:00:08.3]} 41...
Rxh4 {[%clk 0:01:52]} 42. Nd5 {[%clk 0:00:09.1]} 42... Rg4+ {[%clk 0:01:47.4]}
43. Kh3 {[%clk 0:00:09.8]} 43... Rh4+ {[%clk 0:01:48.6]} 44. Kg3 {[%clk
0:00:09.2]} 44... Ne2+ {[%clk 0:01:47.8]} 45. Kf3 {[%clk 0:00:09.4]} 45... Nxc1
{[%clk 0:01:48.8]} 0-1

[Event "*** MasterClass Titled Tuesday Blitz"]
[Site "Chess.com"]
[Date "2017.07.04"]
[Round "5"]
[White "latigre"]
[Black "platy3"]
[Result "0-1"]
[WhiteElo "1767"]
[BlackElo "2610"]
[TimeControl "180+2"]
[EndTime "14:06:21 PDT"]
[Termination "platy3 won on time"]

1. e4 {[%clk 0:03:01.9]} 1... e5 {[%clk 0:02:58.3]} 2. Nf3 {[%clk 0:03:02.7]}
2... Nc6 {[%clk 0:02:59.2]} 3. Bb5 {[%clk 0:03:03.1]} 3... Nf6 {[%clk
0:03:00.2]} 4. Nc3 {[%clk 0:02:57.4]} 4... Bb4 {[%clk 0:02:33.9]} 5. Bxc6 {[%clk
0:02:56.4]} 5... dxc6 {[%clk 0:02:34.4]} 6. Qe2 {[%clk 0:02:49.1]} 6... O-O
{[%clk 0:02:34.4]} 7. a3 {[%clk 0:02:22.8]} 7... Bxc3 {[%clk 0:02:34.3]} 8. dxc3
{[%clk 0:02:23.1]} 8... Re8 {[%clk 0:02:34.7]} 9. Bg5 {[%clk 0:02:22.7]} 9... h6
{[%clk 0:02:35]} 10. Bh4 {[%clk 0:02:22.2]} 10... Qe7 {[%clk 0:02:27.8]} 11.
O-O-O {[%clk 0:02:09.8]} 11... a5 {[%clk 0:02:00.3]} 12. h3 {[%clk 0:02:10.1]}
12... Qe6 {[%clk 0:01:49.8]} 13. Kb1 {[%clk 0:02:07.5]} 13... Nd7 {[%clk
0:01:44.7]} 14. g4 {[%clk 0:02:05.1]} 14... Nc5 {[%clk 0:01:42.8]} 15. g5 {[%clk
0:01:49.2]} 15... h5 {[%clk 0:01:43.5]} 16. Bg3 {[%clk 0:01:48]} 16... Qg6
{[%clk 0:01:40.6]} 17. Rde1 {[%clk 0:01:13.1]} 17... Nd7 {[%clk 0:01:34.2]} 18.
Qe3 {[%clk 0:01:07.6]} 18... b6 {[%clk 0:01:28.1]} 19. Nh4 {[%clk 0:01:05.4]}
19... Qe6 {[%clk 0:01:28.4]} 20. Nf5 {[%clk 0:00:54.1]} 20... Nf8 {[%clk
0:01:06.3]} 21. Qe2 {[%clk 0:00:31.7]} 21... Qg6 {[%clk 0:01:04.6]} 22. Qf3
{[%clk 0:00:23.3]} 22... c5 {[%clk 0:00:54.1]} 23. Nh4 {[%clk 0:00:18.5]} 23...
Qh7 {[%clk 0:00:53.9]} 24. Nf5 {[%clk 0:00:17.1]} 24... Bb7 {[%clk 0:00:54.2]}
25. Rd1 {[%clk 0:00:13.9]} 25... Bc6 {[%clk 0:00:52.8]} 26. Rhe1 {[%clk
0:00:14.1]} 26... Re6 {[%clk 0:00:45.8]} 27. h4 {[%clk 0:00:14.3]} 27... Rae8
{[%clk 0:00:40.9]} 28. Rd2 {[%clk 0:00:13.9]} 28... Ng6 {[%clk 0:00:40.9]} 29.
Red1 {[%clk 0:00:14.1]} 29... Ne7 {[%clk 0:00:37.6]} 30. Rd8 {[%clk 0:00:13.1]}
30... Nxf5 {[%clk 0:00:37.1]} 31. Rxe8+ {[%clk 0:00:12]} 31... Rxe8 {[%clk
0:00:36.9]} 32. Qxf5 {[%clk 0:00:13.3]} 32... Bxe4 {[%clk 0:00:36.9]} 33. Qd7
{[%clk 0:00:12.7]} 33... Bxc2+ {[%clk 0:00:37.3]} 34. Ka2 {[%clk 0:00:11.3]}
34... Rf8 {[%clk 0:00:36.3]} 35. Rd2 {[%clk 0:00:10.6]} 35... a4 {[%clk
0:00:37.1]} 36. Bxe5 {[%clk 0:00:10]} 36... Bb3+ {[%clk 0:00:38.1]} 37. Ka1
{[%clk 0:00:10.2]} 37... Qe4 {[%clk 0:00:39.6]} 0-1